[Event "New York Summer GM-A 2022"]
[Site "New York"]
[Date "2022.07.10"]
[Round "5.1"]
[White "Kaliksteyn, Alexander"]
[Black "Zhou, Liran"]
[Result "0-1"]
[ECO "A47"]
[WhiteElo "2380"]
[BlackElo "2393"]
[Annotator "RC"]
[PlyCount "98"]
[EventDate "2022.07.08"]
[EventType "tourn"]
[EventCountry "USA"]
[SourceTitle "playchess.com"]
[Source "ChessBase"]
[SourceQuality "1"]
[TimeControl "5400+30"]

1. d4 {[%emt 0:00:30]} Nf6 {[%emt 0:03:46]} 2. Nf3 {[%emt 0:00:00]} e6 {[%emt 0:00:18]} 3. Bf4 {[%emt 0:00:00]} c5 {[%emt 0:00:13]} 4. e3 {[%emt 0:00:28]} b6 {[%emt 0:00:11]} 5. Nbd2 {[%emt 0:00:26]} Be7 {[%emt 0:00:16]} 6. h3 {[%emt 0:05:30]} Bb7 {[%emt 0:00:30]} 7. Bd3 {[%emt 0:00:38]} d6 {[%emt 0:01:41]} 8. Bh2 {[%emt 0:00:57]} O-O {[%emt 0:01:27]} 9. O-O {[%emt 0:00:57]} Nc6 {[%emt 0:01:45]} 10. c3 {[%emt 0:05:30]} e5 {[%emt 0:03:49]} 11. dxe5 {[%emt 0:14:22]} dxe5 {[%emt 0:00:11]} 12. Qc2 {[%emt 0:00:12]} Bd6 {[%emt 0:06:43]} 13. Ne4 {[%emt 0:05:41]} h6 {[%emt 0:02:13]} 14. Rad1 {[%emt 0:16:43]} Nxe4 {[%emt 0:01:02]} 15. Bxe4 {[%emt 0:00:40]} Qe7 {[%emt 0:20:40]} 16. Rd2 {[%emt 0:01:18]} Rad8 {[%emt 0:01:43]} 17. Rfd1 {[%emt 0:00:19]} Rfe8 {[%emt 0:09:39]} 18. Bg3 {[%emt 0:01:33]} b5 {[%emt 0:10:58]} 19. Bh4 {[%emt 0:10:19]} g5 {[%emt 0:02:09]} 20. Bg3 {[%emt 0:00:27]} Qf6 {[%emt 0:04:05]} 21. Qd3 {[%emt 0:06:16]} c4 {[%emt 0:08:30]} 22. Qxd6 {[%emt 0:00:50]} Rxd6 {[%emt 0:00:09]} 23. Rxd6 {[%emt 0:00:06]} Re6 {[%emt 0:01:57]} 24. Rd7 {[%emt 0:00:51]} Ba8 {[%emt 0:06:45]} 25. Rc7 {[%emt 0:07:11]} Re8 {[%emt 0:01:30]} 26. Rdd7 {[%emt 0:01:02]} Nd4 {[%emt 0:05:21]} 27. Bh7+ {[%emt 0:06:39]} Kxh7 {[%emt 0:00:39]} 28. Rxf7+ {[%emt 0:00:06]} Qxf7 {[%emt 0:00:05]} 29. Rxf7+ {[%emt 0:00:04]} Kg8 {[%emt 0:04:05]} 30. Rxa7 {[%emt 0:05:50]} Nxf3+ {[%emt 0:00:07]} 31. gxf3 {[%emt 0:00:04]} Bxf3 {[%emt 0:00:08]} 32. Ra5 {[%emt 0:02:03]} h5 {[%emt 0:01:20]} 33. h4 {[%emt 0:04:37]} Rd8 {[%emt 0:00:22]} 34. Bxe5 {[%emt 0:00:28]} Rd5 {[%emt 0:02:32]} 35. Bf6 {[%emt 0:00:59]} gxh4 {[%emt 0:00:27]} 36. Bxh4 {[%emt 0:00:15]} Kf7 {[%emt 0:00:21]} 37. Kh2 {[%emt 0:00:22]} Be4 {[%emt 0:00:27]} 38. Kg3 {[%emt 0:00:24]} Rf5 {[%emt 0:00:05]} 39. f4 {[%emt 0:00:06]} Rd5 {[%emt 0:00:06]} 40. Ra7+ {[%emt 0:02:42]} Kg6 {[%emt 0:00:11]} 41. Ra6+ {[%emt 0:00:35]} Kf7 {[%emt 0:00:47]} 42. Rf6+ {[%emt 0:01:03]} Kg7 {[%emt 0:00:04]} 43. Re6 {[%emt 0:00:07]} Bf5 {[%emt 0:00:53]} 44. Re7+ {[%emt 0:00:30]} Kf8 {[%emt 0:00:03]} 45. e4 {[%emt 0:01:07]} Rd3+ {[%emt 0:00:05]} 46. Kg2 {[%emt 0:01:51]} Re3 {[%emt 0:02:01]} 47. exf5 {[%emt 0:00:33]} Rxe7 {[%emt 0:00:03]} 48. Bxe7+ {[%emt 0:00:06]} Kxe7 {[%emt 0:00:03]} 49. b3 {[%emt 0:00:41]} b4 {[%emt 0:00:30]} 0-1

[Event "New York Summer GM-A 2022"]
[Site "New York"]
[Date "2022.07.10"]
[Round "5.2"]
[White "Khamrakulov, Djurabek"]
[Black "Korley, Kassa"]
[Result "1/2-1/2"]
[ECO "C47"]
[WhiteElo "2492"]
[BlackElo "2421"]
[Annotator "RC"]
[PlyCount "49"]
[EventDate "2022.07.08"]
[EventType "tourn"]
[EventCountry "USA"]
[SourceTitle "playchess.com"]
[Source "ChessBase"]
[SourceQuality "1"]
[TimeControl "5400+30"]

1. e4 {[%emt 0:00:03]} e5 {[%emt 0:00:04]} 2. Nf3 {[%emt 0:00:04]} Nf6 {[%emt 0:00:05]} 3. Nc3 {[%emt 0:00:06]} Nc6 {[%emt 0:00:05]} 4. d4 {[%emt 0:00:04]} exd4 {[%emt 0:00:04]} 5. Nxd4 {[%emt 0:00:04]} Bb4 {[%emt 0:00:07]} 6. Nxc6 {[%emt 0:00:12]} bxc6 {[%emt 0:00:03]} 7. Bd3 {[%emt 0:00:10]} d5 {[%emt 0:00:09]} 8. exd5 {[%emt 0:00:24]} O-O {[%emt 0:00:06]} 9. O-O {[%emt 0:00:13]} Bg4 {[%emt 0:00:08]} 10. f3 {[%emt 0:00:11]} Bh5 {[%emt 0:00:09]} 11. dxc6 {[%emt 0:00:15]} Qd4+ {[%emt 0:00:08]} 12. Kh1 {[%emt 0:00:06]} Bxc3 {[%emt 0:00:03]} 13. bxc3 {[%emt 0:00:06]} Qxc3 {[%emt 0:00:07]} 14. Rb1 {[%emt 0:00:27]} Qxc6 {[%emt 0:02:58]} 15. Rb3 {[%emt 0:00:09]} Rfd8 {[%emt 0:05:12]} 16. Bb2 {[%emt 0:01:23]} Bg6 {[%emt 0:00:21]} 17. Qa1 {[%emt 0:00:44]} Rab8 {[%emt 0:10:09]} 18. Bxf6 {[%emt 0:04:20]} Qxf6 {[%emt 0:01:42]} 19. Qxf6 {[%emt 0:01:33]} gxf6 {[%emt 0:00:04]} 20. Rfb1 {[%emt 0:02:01]} Rb6 {[%emt 0:01:52]} 21. Kg1 {[%emt 0:02:26]} Rd4 {[%emt 0:03:47]} 22. Rxb6 {[%emt 0:02:35]} axb6 {[%emt 0:00:46]} 23. Rb3 {[%emt 0:00:17]} Bxd3 {[%emt 0:00:59]} 24. cxd3 {[%emt 0:01:28]} Ra4 {[%emt 0:06:16]} 25. a3 {[%emt 0:01:50]} 1/2-1/2

[Event "New York Summer GM-A 2022"]
[Site "New York"]
[Date "2022.07.10"]
[Round "5.3"]
[White "Saric, Ante"]
[Black "Lu, Maximillian"]
[Result "1/2-1/2"]
[ECO "D79"]
[WhiteElo "2510"]
[BlackElo "2398"]
[Annotator "TA"]
[PlyCount "102"]
[EventDate "2022.07.08"]
[EventType "tourn"]
[EventCountry "USA"]
[SourceTitle "playchess.com"]
[Source "ChessBase"]
[SourceQuality "1"]
[TimeControl "5400+30"]

{[%evp 18,102,15,26,10,31,20,10,16,17,23,16,6,28,11,11,28,23,40,0,5,0,0,0,61,59,63,60,79,82,86,93,107,96,172,183,154,140,153,153,220,167,167,153,155,167,250,220,250,220,250,250,257,257,257,257,257,220,257,272,252,0,0,0,0,0,0,0,0,0,0,0,0,0,0,0,0,0,0,0,0,0,0,0,0,0,0]} 1. d4 {[%emt 0:00:03]} Nf6 {[%emt 0:05:45]} 2. c4 {[%emt 0:00:09]} g6 {[%emt 0:00:05]} 3. g3 {[%emt 0:00:05]} c6 {[%emt 0:00:15]} 4. Bg2 {[%emt 0:00:12]} d5 {[%emt 0:00:08]} 5. cxd5 {[%emt 0:00:11]} cxd5 {[%emt 0:00:08]} 6. Nc3 {[%emt 0:00:07]} Bg7 {[%emt 0:00:11]} 7. Nf3 {[%emt 0:00:05]} O-O {[%emt 0:00:13]} 8. Ne5 {[%emt 0:01:19]} Bf5 {[%emt 0:01:01] now supersedes 8...e6.} 9. O-O {[%emt 0:00:07]} Ne4 {[%emt 0:02:15]} 10. Bf4 {[%emt 0:02:27]} Nxc3 {[%emt 0:04:52] D79: Fianchetto Grünfeld: Symmetrical Variation (6 0-0 c6 7 cxd5 cxd5).} 11. bxc3 {[%emt 0:00:09]} Nc6 {[%emt 0:00:06]} 12. Nxc6 {[%emt 0:00:20]} bxc6 {[%emt 0:00:01]} 13. Qa4 {[%emt 0:00:09]} Qb6 {[%emt 0:10:06]} 14. e4 {[%emt 0:01:10]} dxe4 {[%emt 0:02:19] [#]} 15. Rfb1 $146 {[%emt 0:00:13][%cal Bf1b1,Bb1b7,Bb7e7,Be7e5,Be5a5][%mdl 32] Prevents Qb5.} ({Predecessor:} 15. Rab1 Qd8 16. Rb7 Rc8 17. Rxa7 Ra8 18. Rb1 Rxa7 19. Qxa7 e5 20. Be3 exd4 21. cxd4 Qa8 22. Rb7 Qxa7 23. Rxa7 Rd8 24. Ra4 h5 25. h3 Re8 26. Rb4 {½-½ (26) Roubaud,D (2534)-Stephan,J (2565) ICCF email 2013}) 15... Qd8 {[%emt 0:00:02]} 16. Rb7 {[%emt 0:00:09]} Qd5 {[%emt 0:09:04]} 17. Rxe7 {[%emt 0:07:10]} c5 {[%emt 0:09:48][%cal Rc5d4]} 18. Be5 {[%emt 0:03:34]} cxd4 {[%emt 0:08:33]} 19. cxd4 {[%emt 0:00:41]} Rfd8 {[%emt 0:05:55]} 20. Re1 {[%emt 0:16:35]} Bxe5 {[%emt 0:17:14]} ({Better is} 20... Bf8 $11 21. Rxa7 Bg7) 21. Rxe5 $14 {[%emt 0:00:30]} Qd7 {[%emt 0:00:01]} 22. Qxd7 {[%emt 0:00:37] White is more active.} Rxd7 {[%emt 0:00:01]} 23. Bxe4 {[%emt 0:00:13]} Bxe4 {[%emt 0:00:01]} 24. R1xe4 {[%emt 0:00:15][%mdl 4096] Endgame KRR-KRR} Rad8 {[%emt 0:04:58]} 25. Ra5 {[%emt 0:00:17]} Rxd4 {[%emt 0:01:24]} (25... Rb8 $16) 26. Rxd4 $18 {[%emt 0:00:06]} Rxd4 {[%emt 0:00:02]} 27. Rxa7 $16 {[%emt 0:00:07] KR-KR} h5 {[%emt 0:00:33]} 28. h4 {[%emt 0:10:06]} Rd2 {[%emt 0:00:15]} (28... Rd1+ $16 {was necessary.} 29. Kg2 Kf8) 29. Kg2 {[%emt 0:00:26]} Kg7 {[%emt 0:00:15]} 30. Kf3 {[%emt 0:00:35]} Kf6 {[%emt 0:00:22]} 31. Ra6+ {[%emt 0:00:54]} Kg7 {[%emt 0:01:33]} (31... Ke5 $142 32. Ke3 Rb2) 32. Ke3 {[%emt 0:00:45]} Rc2 {[%emt 0:00:07]} 33. a4 {[%emt 0:03:18][%cal Ba2a4,Ba4a5,Ba5a6][%mdl 32]} Ra2 {[%emt 0:00:01]} 34. a5 {[%emt 0:00:41]} Kh6 {[%emt 0:04:05]} 35. Ra8 {[%emt 0:03:30]} Kg7 {[%emt 0:01:42]} 36. a6 {[%emt 0:18:12]} Kf6 {[%emt 0:00:05]} 37. f3 {[%emt 0:11:20] [#] Strongly threatening Kd4.} Kf5 {[%emt 0:02:55]} 38. Kd4 {[%emt 0:06:08]} Ra3 {[%emt 0:00:17]} 39. Kc5 $2 {[%emt 0:08:23]} ({White must play} 39. a7 $18) 39... Rxf3 $11 {[%emt 0:00:02] The position is equal.} 40. Kb4 {[%emt 0:04:23]} Rf1 {[%emt 0:04:31]} 41. Rc8 {[%emt 0:00:06]} Rb1+ {[%emt 0:00:18]} 42. Ka5 {[%emt 0:00:02]} Ra1+ {[%emt 0:00:19]} 43. Kb6 {[%emt 0:00:28]} Rb1+ {[%emt 0:00:33]} 44. Kc6 {[%emt 0:00:56] [#] Hoping for a7.} Ra1 {[%emt 0:00:43]} 45. Kb7 {[%emt 0:00:51]} Rb1+ {[%emt 0:00:19]} 46. Ka8 {[%emt 0:01:00]} Kg4 {[%emt 0:01:04]} 47. Rc3 {[%emt 0:00:22]} f5 {[%emt 0:01:54]} 48. a7 {[%emt 0:00:48]} Rb2 {[%emt 0:05:57]} 49. Rd3 {[%emt 0:02:21]} Rb1 {[%emt 0:00:01]} 50. Re3 {[%emt 0:01:11]} Rb2 {[%emt 0:00:18]} 51. Rc3 {[%emt 0:00:45]} Rb1 {[%emt 0:00:06] White really could win this.  Weighted Error Value: White=0.13 (very precise) /Black=0.13 (very precise)} 1/2-1/2

[Event "New York Summer GM-A 2022"]
[Site "New York"]
[Date "2022.07.10"]
[Round "5.4"]
[White "Dragun, Kamil"]
[Black "Williams, Justus"]
[Result "1-0"]
[ECO "C50"]
[WhiteElo "2563"]
[BlackElo "2390"]
[Annotator "TA"]
[PlyCount "91"]
[EventDate "2022.07.08"]
[EventType "tourn"]
[EventCountry "USA"]
[SourceTitle "playchess.com"]
[Source "ChessBase"]
[SourceQuality "1"]
[TimeControl "5400+30"]

{[%evp 10,91,6,6,7,12,10,14,12,8,46,22,16,22,38,25,25,25,25,20,22,31,22,26,20,22,37,15,54,42,39,25,21,17,17,17,20,26,27,16,19,0,0,0,0,0,0,0,0,0,0,0,0,0,0,0,0,0,0,0,0,0,0,0,0,0,0,0,0,0,0,0,134,115,127,0,0,0,29974,29976,29977,29978,29984,29983]} 1. e4 {[%emt 0:00:04]} e5 {[%emt 0:01:01]} 2. Nf3 {[%emt 0:00:13]} Nc6 {[%emt 0:00:18]} 3. Bc4 {[%emt 0:00:12]} Bc5 {[%emt 0:00:10]} 4. d3 {[%emt 0:00:34]} Nf6 {[%emt 0:00:30]} 5. Nc3 {[%emt 0:00:35]} h6 {[%emt 0:01:46]} 6. h3 {[%emt 0:01:17]} a6 {[%emt 0:02:18] C50: Hungarian Defence and Giuoco Pianissimo.} 7. a4 {[%emt 0:00:10] 7.Be3 is a critical line.} d6 {[%emt 0:01:02]} 8. O-O {[%emt 0:01:07]} g5 {[%emt 0:03:49] The position is equal.} 9. Nh2 {[%emt 0:00:12] [#] Inhibits g4.} Nd4 $146 {[%emt 0:05:46][%cal Og5g4]} ({Predecessor:} 9... Rg8 10. Be3 h5 11. Bxc5 dxc5 12. Nd5 g4 13. h4 Be6 14. Ne3 Qd7 15. g3 O-O-O {0-1 (37) Souleidis,G (2436)-Hovhannisyan,R (2621) Tegernsee 2018}) 10. Nd5 {[%emt 0:02:37]} Nxd5 {[%emt 0:02:55]} 11. Bxd5 {[%emt 0:00:06]} c6 {[%emt 0:02:03]} 12. Ba2 {[%emt 0:00:16]} h5 {[%emt 0:06:31]} 13. c3 {[%emt 0:14:12]} Ne6 {[%emt 0:00:40]} 14. d4 {[%emt 0:00:23]} Bb6 {[%emt 0:02:44][%cal Re5d4]} 15. dxe5 {[%emt 0:09:33]} dxe5 {[%emt 0:00:17][%cal Og5g4]} 16. Qxd8+ {[%emt 0:00:26]} Bxd8 {[%emt 0:00:15]} 17. Be3 {[%emt 0:00:27] Inhibits Nc5.} Nf4 {[%emt 0:11:06]} 18. Rfd1 {[%emt 0:02:11]} Bf6 {[%emt 0:04:23]} 19. Rd2 {[%emt 0:08:41]} Be6 {[%emt 0:04:55]} 20. Bxf4 {[%emt 0:01:32]} exf4 {[%emt 0:00:41]} 21. Bxe6 {[%emt 0:00:16]} fxe6 {[%emt 0:00:07]} 22. Rad1 {[%emt 0:00:32]} Rd8 {[%emt 0:01:48]} 23. Rxd8+ {[%emt 0:01:06]} Bxd8 $11 {[%emt 0:00:02][%mdl 4096] Endgame KRB-KRN} 24. Nf3 {[%emt 0:00:29]} Bf6 {[%emt 0:01:39]} 25. Nd2 {[%emt 0:02:11]} Ke7 {[%emt 0:06:52]} 26. Nb3 {[%emt 0:00:22]} Rc8 {[%emt 0:04:01]} 27. Kf1 {[%emt 0:08:47]} c5 {[%emt 0:02:20]} 28. a5 {[%emt 0:00:59]} Be5 {[%emt 0:02:29]} 29. Nd2 {[%emt 0:01:57]} Bc7 {[%emt 0:01:46]} 30. Nc4 {[%emt 0:02:31]} Rd8 {[%emt 0:08:02]} 31. Ke2 {[%emt 0:02:55]} Rxd1 {[%emt 0:08:28]} 32. Kxd1 {[%emt 0:00:21] KB-KN} Kd7 {[%emt 0:01:10]} 33. Kc2 {[%emt 0:00:13]} Kc6 {[%emt 0:02:10]} 34. b4 {[%emt 0:00:13]} g4 {[%emt 0:01:18]} (34... Kb5 $5 35. Kb3 cxb4 36. cxb4 Bd8 $11) 35. f3 {[%emt 0:00:36]} gxh3 {[%emt 0:01:20]} 36. gxh3 {[%emt 0:00:02]} cxb4 {[%emt 0:03:02]} (36... Kb5 $5 37. Kb3 Bd8 $11) 37. cxb4 {[%emt 0:00:23]} Kd7 {[%emt 0:01:12]} 38. Kc3 {[%emt 0:08:18]} e5 {[%emt 0:00:45]} 39. Nb2 {[%emt 0:04:33]} Ke7 {[%emt 0:01:51]} 40. Nd3 {[%emt 0:00:17]} Kf6 {[%emt 0:00:34]} (40... Kd7 $11) 41. Nc5 $16 {[%emt 0:20:48]} Kg5 {[%emt 0:05:22] aiming for ...Kh4.} 42. Ne6+ {[%emt 0:02:51]} (42. Nxb7 $16 {Strongly threatening Nc5.} Kh4 43. Nc5 Kxh3 44. Nxa6) 42... Kh4 $11 {[%emt 0:00:01]} 43. Nxc7 {[%emt 0:00:06] White wants to mate with Kd2.} Kg3 $2 {[%emt 0:01:51][%mdl 8192] [#]} (43... Kxh3 $11 44. Nxa6 h4) 44. Nxa6 $1 {[%emt 0:00:35] White mates.} bxa6 {[%emt 0:00:32]} 45. b5 $1 {[%emt 0:00:01][%cal Bb4b5,Bb5a6][%mdl 32]} Kxf3 {[%emt 0:00:35]} 46. bxa6 {[%emt 0:00:14] Weighted Error Value: White=0.07 (flawless) /Black=0.23 (precise)} 1-0

[Event "New York Summer GM-A 2022"]
[Site "New York"]
[Date "2022.07.10"]
[Round "5.5"]
[White "Song, Michael"]
[Black "Ostrovskiy, Aleksandr"]
[Result "1-0"]
[ECO "D32"]
[WhiteElo "2409"]
[BlackElo "2392"]
[Annotator "RC"]
[PlyCount "83"]
[EventDate "2022.07.08"]
[EventType "tourn"]
[EventCountry "USA"]
[SourceTitle "playchess.com"]
[Source "ChessBase"]
[SourceQuality "1"]
[TimeControl "5400+30"]

1. d4 {[%emt 0:00:18]} d5 {[%emt 0:11:51]} 2. c4 {[%emt 0:01:04]} e6 {[%emt 0:01:08]} 3. Nc3 {[%emt 0:00:16]} c5 {[%emt 0:00:06]} 4. cxd5 {[%emt 0:00:33]} cxd4 {[%emt 0:00:05]} 5. Qxd4 {[%emt 0:00:35]} Nc6 {[%emt 0:00:05]} 6. Qd1 {[%emt 0:00:34]} exd5 {[%emt 0:00:05]} 7. Qxd5 {[%emt 0:00:34]} Bd6 {[%emt 0:05:24]} 8. Nf3 {[%emt 0:09:30]} Nf6 {[%emt 0:00:06]} 9. Qd1 {[%emt 0:01:11]} O-O {[%emt 0:01:38]} 10. g3 {[%emt 0:18:24]} Bb4 {[%emt 0:06:29]} 11. Bd2 {[%emt 0:02:25]} Qe7 {[%emt 0:11:04]} 12. Bg2 {[%emt 0:00:40]} Rd8 {[%emt 0:00:59]} 13. O-O {[%emt 0:02:33]} Bxc3 {[%emt 0:03:36]} 14. bxc3 {[%emt 0:00:39]} Ne4 {[%emt 0:00:04]} 15. Qc1 {[%emt 0:10:43]} Nxd2 {[%emt 0:01:25]} 16. Nxd2 {[%emt 0:00:02]} Qxe2 {[%emt 0:03:21]} 17. Re1 {[%emt 0:00:11]} Qa6 {[%emt 0:14:05]} 18. Nb3 {[%emt 0:11:07]} Bf5 {[%emt 0:07:41]} 19. Qf4 {[%emt 0:04:09]} Bg6 {[%emt 0:01:38]} 20. Re3 {[%emt 0:02:46]} h6 {[%emt 0:07:58]} 21. h4 {[%emt 0:02:41]} Qa3 {[%emt 0:08:15]} 22. g4 {[%emt 0:03:18]} Bc2 {[%emt 0:12:42]} 23. c4 {[%emt 0:05:57]} Bxb3 {[%emt 0:01:21]} 24. Rxb3 {[%emt 0:00:03]} Qe7 {[%emt 0:00:06]} 25. Bd5 {[%emt 0:00:48]} Rd7 {[%emt 0:01:03]} 26. g5 {[%emt 0:00:50]} hxg5 {[%emt 0:00:16]} 27. hxg5 {[%emt 0:00:11]} g6 {[%emt 0:00:56]} 28. Rh3 {[%emt 0:05:15]} Qe5 {[%emt 0:00:24]} 29. Qxe5 {[%emt 0:01:13]} Nxe5 {[%emt 0:00:02]} 30. f4 {[%emt 0:04:07]} Nc6 {[%emt 0:00:05]} 31. Kf2 {[%emt 0:00:15]} Rad8 {[%emt 0:00:46]} 32. f5 {[%emt 0:01:33]} gxf5 {[%emt 0:01:07]} 33. g6 {[%emt 0:00:02]} Kg7 {[%emt 0:00:37]} 34. gxf7 {[%emt 0:00:36]} Ne5 {[%emt 0:00:22]} 35. Rg1+ {[%emt 0:01:29]} Ng4+ {[%emt 0:00:12]} 36. Kf3 {[%emt 0:04:27]} b5 {[%emt 0:00:21]} 37. Kf4 {[%emt 0:00:45]} Kg6 {[%emt 0:00:27]} 38. Re1 {[%emt 0:02:10]} Rxd5 {[%emt 0:01:08]} 39. cxd5 {[%emt 0:01:16]} Kxf7 {[%emt 0:00:21]} 40. Rh7+ {[%emt 0:01:08]} Kg6 {[%emt 0:00:19]} 41. Rxa7 {[%emt 0:00:15]} Rxd5 {[%emt 0:00:51]} 42. Re6+ {[%emt 0:00:16]} 1-0

[Event "New York Summer GM-A 2022"]
[Site "New York"]
[Date "2022.07.10"]
[Round "6.1"]
[White "Zhou, Liran"]
[Black "Ostrovskiy, Aleksandr"]
[Result "0-1"]
[ECO "C63"]
[WhiteElo "2393"]
[BlackElo "2392"]
[Annotator "RC"]
[PlyCount "106"]
[EventDate "2022.07.08"]
[EventType "tourn"]
[EventCountry "USA"]
[SourceTitle "playchess.com"]
[Source "ChessBase"]
[SourceQuality "1"]
[TimeControl "5400+30"]

1. e4 {[%emt 0:08:22]} e5 {[%emt 0:06:26]} 2. Nf3 {[%emt 0:00:08]} Nc6 {[%emt 0:00:05]} 3. Bb5 {[%emt 0:00:12]} f5 {[%emt 0:00:07]} 4. d3 {[%emt 0:00:38]} fxe4 {[%emt 0:00:32]} 5. dxe4 {[%emt 0:00:08]} Nf6 {[%emt 0:00:05]} 6. O-O {[%emt 0:00:42]} Bc5 {[%emt 0:00:37]} 7. Nc3 {[%emt 0:05:23]} d6 {[%emt 0:00:59]} 8. Bg5 {[%emt 0:02:54]} O-O {[%emt 0:00:27]} 9. Bc4+ {[%emt 0:10:27]} Kh8 {[%emt 0:01:33]} 10. Nd5 {[%emt 0:01:03]} Be6 {[%emt 0:18:36]} 11. Nh4 {[%emt 0:20:55]} Bxd5 {[%emt 0:19:27]} 12. exd5 {[%emt 0:01:34]} Ne7 {[%emt 0:02:55]} 13. Qd3 {[%emt 0:16:35]} Qd7 {[%emt 0:09:52]} 14. h3 {[%emt 0:09:12]} Nh5 {[%emt 0:09:12]} 15. Rae1 {[%emt 0:11:43]} a6 {[%emt 0:10:14]} 16. Nf3 {[%emt 0:01:42]} Ng6 {[%emt 0:02:45]} 17. Nd2 {[%emt 0:01:46]} Ngf4 {[%emt 0:05:10]} 18. Qf3 {[%emt 0:01:29]} Bb6 {[%emt 0:06:48]} 19. Ne4 {[%emt 0:00:46]} Qe8 {[%emt 0:00:44]} 20. Qg4 {[%emt 0:02:33]} h6 {[%emt 0:00:33]} 21. Bh4 {[%emt 0:01:38]} g5 {[%emt 0:00:05]} 22. Bg3 {[%emt 0:00:08]} Nf6 {[%emt 0:00:28]} 23. Nxf6 {[%emt 0:00:38]} Rxf6 {[%emt 0:00:01]} 24. Re4 {[%emt 0:01:05]} Qg6 {[%emt 0:01:25]} 25. Bxf4 {[%emt 0:00:40]} Qxe4 {[%emt 0:02:36]} 26. Bxg5 {[%emt 0:00:04]} Rxf2 {[%emt 0:00:07]} 27. Qxe4 {[%emt 0:00:32]} Rf4+ {[%emt 0:00:09]} 28. Kh2 {[%emt 0:00:40]} Rxe4 {[%emt 0:00:01]} 29. Bd3 {[%emt 0:00:12]} Rb4 {[%emt 0:02:25]} 30. Bxh6 {[%emt 0:00:26]} e4 {[%emt 0:00:27]} 31. c3 {[%emt 0:01:11]} Rxb2 {[%emt 0:00:16]} 32. Bxe4 {[%emt 0:00:05]} Re8 {[%emt 0:00:48]} 33. Bg6 {[%emt 0:00:36]} Rg8 {[%emt 0:00:06]} 34. Rf6 {[%emt 0:00:10]} Ba5 {[%emt 0:00:44]} 35. h4 {[%emt 0:01:08]} Bxc3 {[%emt 0:00:10]} 36. Re6 {[%emt 0:00:07]} Bd2 {[%emt 0:00:51]} 37. Be4 {[%emt 0:00:46]} Bxh6 {[%emt 0:00:21]} 38. Rxh6+ {[%emt 0:00:04]} Kg7 {[%emt 0:00:00]} 39. Rh7+ {[%emt 0:00:07]} Kf6 {[%emt 0:00:07]} 40. h5 {[%emt 0:00:34]} Rxa2 {[%emt 0:01:07]} 41. Rxc7 {[%emt 0:00:08]} Ra4 {[%emt 0:00:46]} 42. Bf3 {[%emt 0:00:25]} b5 {[%emt 0:00:50]} 43. Rd7 {[%emt 0:00:10]} Rh4+ {[%emt 0:00:25]} 44. Kg1 {[%emt 0:00:05]} Ke5 {[%emt 0:00:11]} 45. Ra7 {[%emt 0:01:36]} b4 {[%emt 0:00:41]} 46. Rxa6 {[%emt 0:00:09]} Rb8 {[%emt 0:00:21]} 47. g4 {[%emt 0:01:21]} b3 {[%emt 0:00:42]} 48. Ra4 {[%emt 0:00:44]} b2 {[%emt 0:00:21]} 49. Re4+ {[%emt 0:00:08]} Kf6 {[%emt 0:00:13]} 50. Rf4+ {[%emt 0:00:16]} Kg7 {[%emt 0:00:37]} 51. Be4 {[%emt 0:00:19]} Rb4 {[%emt 0:00:15]} 52. h6+ {[%emt 0:00:31]} Rxh6 {[%emt 0:00:31]} 53. g5 {[%emt 0:00:07]} Rh5 {[%emt 0:00:46]} 0-1